bitfinex/quotes_ETHUSD_20240822
["timestamp","ask_amount","ask_price","bid_price","bid_amount"]
[1724347693406,3.82344,2615.5,2614.9,6.14097]
[1724347693564,0.05485797,2615.2,2615.1,3.82394]
[1724347693764,3.82317,2615.7,2615.2,2.371]
[1724347693960,6.30824,2615.8,2615.3,3.82363]
[1724347694514,3.82294,2615.8,2615.4,3.82348]
[1724347694658,7.64575,2615.9,2615.4,3.82348]
[1724347695078,2.3937,2616.2,2615.5,3.82325]
[1724347695323,3.82256,2616.1,2615.6,6.19421]
[1724347695469,7.64516,2616.1,2615.6,6.19421]
[1724347696030,3.82264,2616.0,2615.6,2.371]
[1724347697268,3.82256,2616.1,2615.6,6.27064598]
[1724347697469,0.05332924,2616.0,2615.6,6.27064598]
[1724347697712,0.05332924,2616.0,2615.7,3.82306]
[1724347698423,3.82234,2616.2,2615.7,3.82306]
[1724347698626,0.05370439,2615.9,2615.7,3.82306]
[1724347698927,0.05371649,2615.8,2615.7,3.82306]
[1724347699337,3.82234,2616.2,2615.7,3.82306]
[1724347699615,0.05371649,2615.8,2615.7,3.82306]
[1724347699781,3.82234,2616.2,2615.7,4.92572996]
[1724347700133,3.82234,2616.2,2615.7,1.10266996]
[1724347700134,3.82254,2616.1,2615.7,1.10266996]
[1724347700275,3.87625649,2616.1,2615.7,1.10266996]
[1724347700673,3.87625649,2616.1,2615.6,6.19421]
[1724347700674,3.82271,2616.0,2615.6,2.371]
[1724347701002,3.82271,2616.0,2615.4,6.13027]
[1724347701003,3.82284,2615.9,2615.4,6.13027]
[1724347701188,3.87655649,2615.9,2615.4,6.13027]
[1724347703293,3.87655649,2615.9,2615.4,2.3068]
[1724347704495,3.82307,2615.7,2615.2,3.82376]
[1724347704796,3.82336,2615.5,2615.1,2.3944]
[1724347705008,3.82336,2615.5,2615.1,5.3944]
[1724347705181,0.05360759,2615.4,2615.1,9.21833]
[1724347705381,0.05360759,2615.4,2615.1,15.082422]
[1724347705580,3.82322,2615.6,2615.1,11.258492]
[1724347705781,0.05360759,2615.3,2615.1,9.21825]
[1724347705983,6.31182,2615.6,2615.1,13.04212]
[1724347706196,0.05360759,2615.2,2615.1,6.21825]
[1724347706397,2.4886,2615.6,2615.2,3.82379]
[1724347706995,3.82307,2615.7,2615.2,3.82379]
[1724347707195,3.82307,2615.7,2615.2,7.64745]
[1724347707421,3.82307,2615.7,2615.3,3.82364]
[1724347707823,3.82287,2615.9,2615.3,4.827816]
[1724347708225,3.82287,2615.9,2615.5,3.82335]
[1724347709059,3.82294,2615.8,2615.3,3.82357]
[1724347709561,3.82294,2615.8,2615.3,7.64712]
[1724347709928,3.82294,2615.8,2615.4,3.8235]
[1724347711237,3.82294,2615.8,2615.3,3.82355]
[1724347711646,7.64594,2615.8,2615.3,3.82355]
[1724347711964,3.82294,2615.8,2615.3,3.82355]
[1724347712536,0.05382543,2615.7,2615.3,3.82355]
[1724347712861,3.82294,2615.8,2615.3,4.82773]
[1724347713055,0.05382543,2615.6,2615.3,3.82355]
[1724347713226,0.05382543,2615.6,2615.1,6.21825]
[1724347713227,3.82316,2615.7,2615.1,6.2182]
[1724347713428,3.82235,2616.2,2615.0,7.36]
[1724347713429,0.05381937,2615.5,2615.0,7.36]
[1724347713629,3.82337,2615.5,2615.0,11.18396]
[1724347713941,3.87733937,2615.4,2615.0,7.36]
[1724347716443,0.05381937,2615.4,2615.0,11.18405]
[1724347716638,0.05381937,2615.4,2615.1,3.82393]
[1724347717044,0.05358343,2615.3,2615.1,3.82393]
[1724347717261,6.16437,2615.6,2615.1,3.82393]
[1724347717537,0.05358343,2615.2,2615.1,3.82393]
[1724347717767,9.98767,2615.6,2615.1,3.82393]
[1724347717935,0.05358343,2615.2,2615.1,3.82393]
[1724347718135,4.504785,2616.1,2615.1,3.82393]
[1724347718136,6.08892,2616.0,2615.3,6.29515]
[1724347718481,3.82294,2615.8,2615.3,6.29515]
[1724347718846,7.64596,2615.8,2615.3,6.29515]
[1724347719048,3.82294,2615.8,2615.3,3.82365]
[1724347719298,3.82294,2615.8,2615.2,3.82378]
[1724347719593,3.82309,2615.7,2615.2,3.82378]
[1724347720589,3.82309,2615.7,2615.0,1.81011231]
[1724347720590,3.82353,2615.4,2615.0,3.82408]
[1724347720805,3.82344,2615.5,2615.0,3.82408]
[1724347722161,2.4262,2615.6,2615.1,3.82386]
[1724347722363,6.24943,2615.6,2615.1,3.82386]
[1724347723505,6.19391,2615.8,2615.3,3.82357]
[1724347723806,3.82306,2615.7,2615.2,7.64741]
[1724347724301,3.82306,2615.7,2615.2,3.82368]
[1724347725105,0.05363184,2615.6,2615.2,3.82368]
[1724347726449,3.87685184,2615.6,2615.2,3.82368]
[1724347726854,3.87685184,2615.6,2615.1,6.14274]
[1724347727799,3.8235,2615.4,2615.0,3.82398]
[1724347728487,0.05364393,2615.3,2615.1,3.82393]
[1724347728797,3.82322,2615.6,2615.1,3.82393]
[1724347729094,0.05364393,2615.2,2615.1,4.588721]
[1724347729500,3.82322,2615.6,2615.1,4.588721]
[1724347729701,3.82303,2615.8,2615.3,3.82355]
[1724347730670,7.64605,2615.8,2615.3,3.82355]
[1724347730876,3.82307,2615.7,2615.3,3.82355]
[1724347731674,3.82293,2615.8,2615.3,3.82355]
[1724347732001,7.64593,2615.8,2615.3,4.59410971]
[1724347732806,3.82309,2615.7,2615.3,0.77055971]
[1724347733260,3.82309,2615.7,2615.3,4.59419971]
[1724347733461,3.82289,2615.9,2615.4,3.8235]
[1724347734470,3.82289,2615.9,2615.4,5.4675]
[1724347734670,3.82251,2616.1,2615.6,5.4672]
[1724347734991,3.82236,2616.2,2615.9,2.3955]
[1724347735570,7.64481,2616.2,2615.9,2.3955]
[1724347735764,3.82236,2616.2,2615.9,2.3955]
[1724347736570,7.64483,2616.2,2615.9,2.3955]
[1724347736967,3.82255,2616.1,2615.9,2.3955]
[1724347737212,3.82268,2616.0,2615.5,6.24254]
[1724347737482,3.82296,2615.8,2615.5,2.4192]
[1724347737772,3.82296,2615.8,2615.4,1.24599797]
[1724347738080,2.4189,2615.8,2615.3,7.36]
[1724347738382,3.82348,2615.5,2615.1,2.3289]
[1724347739075,3.82348,2615.5,2614.8,11.18437]
[1724347739076,3.82372,2615.3,2614.8,11.18437]
[1724347739573,3.82372,2615.3,2614.8,15.00867]
[1724347739943,2.3873,2615.4,2614.9,3.8242]
[1724347740140,0.05374072,2615.2,2614.9,3.8242]
[1724347740336,2.3873,2615.4,2614.9,3.8242]
[1724347740537,6.21085,2615.4,2614.9,4.58905]
[1724347740786,0.05374072,2615.3,2614.9,4.58905]
[1724347741078,0.05374072,2615.3,2614.8,3.82437]
[1724347741282,0.05374072,2615.3,2614.7,3.82445]
[1724347741283,3.8238,2615.2,2614.7,3.82445]
[1724347741508,0.05362575,2615.2,2614.8,3.82436]
[1724347741842,10.03447,2615.4,2614.8,3.82436]
[1724347742060,3.82366,2615.3,2614.8,3.82436]
[1724347742692,3.82366,2615.3,2614.6,21.71471]
[1724347742693,0.05362575,2615.2,2614.6,6.26468]
[1724347742856,2.3873,2615.4,2614.6,6.26468]
[1724347742857,3.82402,2615.1,2614.6,10.08927]
[1724347743054,3.87763365,2615.1,2614.6,6.26468]
[1724347743243,3.87763365,2615.1,2614.6,8.009635]
[1724347743743,3.87763365,2615.1,2614.6,11.834235]
[1724347744453,3.87763365,2615.1,2614.5,7.36]
[1724347744454,3.82426,2614.9,2614.5,7.36]
[1724347744764,0.05349261,2614.8,2614.5,11.18481]
[1724347745183,3.82404,2615.1,2614.5,11.18481]
[1724347745379,0.05349261,2614.7,2614.6,3.82466]
[1724347745539,7.6481,2615.1,2614.6,3.82466]
[1724347745746,0.05349261,2614.7,2614.6,3.82466]
[1724347745945,7.64806,2615.1,2614.6,3.82466]
[1724347746146,0.05182594,2614.7,2614.6,3.82466]
[1724347746343,3.82402,2615.1,2614.6,5.736654]
[1724347746594,0.05182594,2614.7,2614.6,9.561324]
[1724347746795,3.82374,2615.3,2614.8,3.82433]
[1724347747138,0.05182594,2615.2,2614.8,7.64863]
[1724347747343,3.82374,2615.3,2614.8,7.64859]
[1724347747582,0.05174726,2615.1,2614.8,3.82429]
[1724347747884,0.05174726,2615.0,2614.9,0.609149]
[1724347748090,3.82374,2615.3,2614.9,0.609149]
[1724347748442,0.05181384,2615.0,2614.9,0.609149]
[1724347748647,3.82374,2615.3,2614.9,0.609149]
[1724347748993,3.82374,2615.3,2614.8,3.82429]
[1724347749154,0.05181384,2615.2,2614.8,3.82429]
[1724347749489,0.05181384,2615.2,2614.7,6.09168]
[1724347749490,3.82382,2615.2,2614.7,6.09168]
[1724347749654,0.05181384,2615.1,2614.7,6.09168]
[1724347750157,3.82419,2615.0,2614.2,15.45]
[1724347750485,3.82419,2615.0,2614.5,3.82475]
[1724347750486,6.13519,2615.0,2614.5,3.82475]
[1724347750788,6.13519,2615.0,2614.4,3.82485]
[1724347750789,0.05155364,2614.9,2614.4,3.82485]
[1724347751773,0.05155364,2614.9,2614.5,3.82473]
[1724347752172,0.05155364,2614.9,2614.6,3.82465]
[1724347752417,0.05155364,2614.9,2614.7,0.382465]
[1724347752679,0.05155364,2614.8,2614.7,0.382465]
[1724347752851,3.82397,2615.1,2614.6,7.64919]
[1724347753047,0.05155364,2615.0,2614.6,3.82459]
[1724347753252,0.05155364,2615.0,2614.6,3.82458]
[1724347753785,0.05155364,2615.0,2614.6,7.64918]
[1724347754091,0.05155364,2615.0,2614.6,4.589498]
[1724347755645,0.05155364,2615.0,2614.6,8.414098]
[1724347755887,0.05155364,2615.0,2614.8,3.82427]
[1724347756073,3.82359,2615.4,2614.9,3.82423]
[1724347757388,3.82332,2615.6,2615.1,3.82387]
[1724347757668,3.82332,2615.6,2615.1,7.64773]
[1724347757891,0.05155969,2615.5,2615.1,3.82386]
[1724347758077,3.87501969,2615.5,2614.9,8.64716]
[1724347758266,3.87501969,2615.5,2614.9,4.82302]
[1724347758465,3.87501969,2615.5,2615.0,0.716332]
[1724347758889,3.87501969,2615.5,2615.0,4.540392]
[1724347759508,3.82352,2615.4,2615.0,4.540392]
[1724347759714,0.05158995,2615.3,2615.0,4.540392]
[1724347760211,0.05158995,2615.3,2615.1,2.3699]
[1724347760372,0.05158995,2615.3,2615.2,0.6910292]
[1724347760572,3.82345,2615.5,2615.2,0.6910292]
[1724347760772,0.05171098,2615.3,2615.1,2.3699]
[1724347760968,3.82345,2615.5,2615.1,2.3699]
[1724347761169,0.05171098,2615.2,2615.1,2.3699]
[1724347761405,3.82345,2615.5,2615.1,2.3699]
[1724347761610,0.05171098,2615.2,2615.1,2.3699]
[1724347761815,3.82345,2615.5,2615.1,3.371694]
[1724347762440,0.05171098,2615.4,2615.1,3.371694]
[1724347763844,0.05171098,2615.4,2615.2,3.82379]
[1724347764136,3.82308,2615.7,2615.2,3.82379]
[1724347764286,3.82303,2615.8,2615.3,3.82359]
[1724347764287,7.64605,2615.8,2615.3,3.82359]
[1724347764484,3.82302,2615.8,2615.4,0.764738]
[1724347764727,3.82307,2615.7,2615.2,3.82372]
[1724347766099,3.82302,2615.8,2615.2,3.82372]
[1724347766100,3.82321,2615.6,2615.2,3.82372]
[1724347766489,3.82321,2615.6,2615.2,4.78502962]
[1724347769808,10.00629,2615.4,2614.8,15.00867]
[1724347770006,10.00627,2615.4,2614.9,1.746007]
[1724347770707,3.82358,2615.4,2614.9,5.570147]
[1724347770942,10.08077,2615.6,2615.0,6.12385]
[1724347771166,3.82297,2615.8,2615.0,6.12385]
[1724347771341,3.82306,2615.7,2615.1,0.7869857]
[1724347771863,3.82306,2615.7,2615.2,3.82377]
[1724347772566,0.05171098,2615.6,2615.3,2.2809]
[1724347772708,3.82316,2615.7,2615.3,2.97006057]
[1724347773058,0.05181991,2615.5,2615.3,2.97006057]
[1724347773353,3.82323,2615.6,2615.3,0.68916057]
[1724347773509,3.82323,2615.6,2615.1,2.2809]
[1724347773510,0.05192884,2615.4,2615.1,2.2809]
[1724347773704,3.82323,2615.6,2615.1,2.2809]
[1724347774022,0.05192884,2615.3,2615.1,6.10484]
[1724347774229,3.82345,2615.5,2615.1,2.2809]
[1724347774426,0.05192884,2615.2,2615.1,2.2809]
[1724347774756,0.05192884,2615.2,2615.1,0.7850907]
[1724347775077,6.22995,2615.4,2614.9,7.851137]
[1724347775223,0.05195305,2615.2,2614.9,7.851137]
[1724347775575,0.05195305,2615.1,2615.0,3.82407]
[1724347775775,6.22995,2615.4,2615.0,3.82407]
[1724347776071,0.05195305,2615.1,2615.0,5.7276007]
[1724347776269,6.22995,2615.4,2615.0,5.7276007]
[1724347776477,0.05195305,2615.1,2615.0,5.7276007]
[1724347776975,2.4064,2615.4,2615.0,5.7276007]
[1724347777137,0.05195305,2615.3,2615.0,3.82407]
[1724347777687,0.05195305,2615.3,2614.8,11.18433]
[1724347777823,3.82387,2615.2,2614.7,6.14302]
[1724347778382,2.4064,2615.4,2614.6,11.18462]
[1724347778383,3.824,2615.1,2614.6,11.18462]
[1724347778582,3.824,2615.1,2614.7,2.972161]
[1724347778874,3.824,2615.1,2614.7,6.796681]
[1724347779085,3.82368,2615.3,2614.7,6.796681]
[1724347779264,3.82368,2615.3,2614.8,3.82437]
[1724347779442,6.22991,2615.4,2615.0,3.82402]
[1724347779650,0.05186228,2615.2,2614.9,3.82423]
[1724347779844,10.05351,2615.4,2614.9,5.1343461]
[1724347780048,0.05179571,2615.1,2614.9,3.82423]
[1724347780249,6.22991,2615.4,2614.9,3.82423]
[1724347780445,0.05181387,2615.0,2614.9,3.82423]
[1724347780679,6.22991,2615.4,2614.9,3.82423]
[1724347780887,0.05181387,2615.0,2614.9,3.82423]
[1724347781178,0.05181387,2615.0,2614.9,5.1343461]
[1724347781395,6.22991,2615.4,2614.9,5.1343461]
[1724347781526,0.05181387,2615.3,2614.9,3.82423]
[1724347782443,3.87554387,2615.3,2614.8,6.30477]
[1724347782651,3.87554387,2615.3,2614.8,7.64867]
[1724347782887,0.05181387,2615.3,2614.9,3.82423]
[1724347783030,0.05181387,2615.3,2614.8,7.64861]
[1724347783231,3.87546387,2615.3,2614.8,4.79419215]
[1724347786303,3.82381,2615.2,2614.8,4.79419215]
[1724347786866,0.05165046,2615.1,2614.8,4.79419215]
[1724347787169,0.05165046,2615.1,2614.9,3.82422]
[1724347787551,3.82365,2615.3,2614.9,3.82422]
[1724347788192,0.05165046,2615.2,2614.9,3.82422]
[1724347788385,3.82365,2615.3,2614.9,3.82422]
[1724347788591,0.05165046,2615.2,2614.9,3.82422]
[1724347788751,3.82365,2615.3,2614.9,3.82422]
[1724347788948,0.05165046,2615.2,2614.9,3.82422]
[1724347789148,3.82365,2615.3,2614.9,3.82422]
[1724347789677,0.05165046,2615.2,2614.9,3.82422]
[1724347790080,3.82365,2615.3,2614.9,3.82422]
[1724347790274,0.05165046,2615.1,2614.9,3.82422]
[1724347790477,3.82365,2615.3,2614.9,3.82422]
[1724347790759,0.05165046,2615.0,2614.9,3.82422]
[1724347790957,3.82365,2615.3,2614.9,5.2806191]
[1724347791157,0.05162625,2615.2,2614.9,5.2806191]
[1724347791382,3.82365,2615.3,2614.9,5.2806191]
[1724347791593,0.05162625,2615.2,2614.9,5.2806191]
[1724347791965,3.82365,2615.3,2614.9,5.2806191]
[1724347792268,0.05162625,2615.2,2614.9,5.2806191]
[1724347792596,3.82365,2615.3,2614.9,5.2806191]
[1724347792784,0.05162625,2615.2,2614.9,3.82422]
[1724347793096,3.82365,2615.3,2614.9,3.82422]
[1724347793276,0.05162625,2615.1,2614.9,3.82422]
[1724347793489,3.82365,2615.3,2614.9,3.82422]
[1724347793696,0.05162625,2615.0,2614.9,3.82422]
[1724347793920,3.82365,2615.3,2614.9,5.2806191]
[1724347794120,0.05162625,2615.0,2614.9,3.82422]
[1724347794280,3.82365,2615.3,2614.9,3.82422]
[1724347794822,0.05162625,2615.2,2614.9,3.82422]
[1724347795115,3.82365,2615.3,2614.8,3.82436]
[1724347795416,7.64739,2615.3,2614.8,3.82436]
[1724347795578,0.05162625,2615.2,2614.8,3.82436]
[1724347795933,3.82365,2615.3,2614.9,3.82423]
[1724347796095,0.05162625,2615.1,2614.9,4.753604]
[1724347796303,3.82365,2615.3,2614.9,3.82423]
[1724347796498,0.05172308,2615.0,2614.9,3.82423]
[1724347797230,3.82365,2615.3,2614.9,3.82423]
[1724347797599,0.05172308,2615.2,2614.9,3.82423]
[1724347797779,3.82365,2615.3,2614.9,3.82423]
[1724347797978,0.05172308,2615.2,2614.9,3.82423]
[1724347798294,7.6474,2615.3,2614.8,3.82437]
[1724347798486,0.05172308,2615.1,2614.7,3.82451]
[1724347798726,2.4551,2615.1,2614.7,3.82444]
[1724347798921,6.27904,2615.1,2614.7,3.82444]
[1724347799110,0.05172308,2615.0,2614.7,3.82444]
[1724347799420,3.82431,2614.9,2614.6,7.36]
[1724347799653,2.2675,2614.8,2614.6,7.36]
[1724347799783,3.82453,2614.7,2614.6,7.36]
[1724347800478,3.82453,2614.7,2614.3,3.82503]
[1724347800679,2.2675,2614.8,2614.3,3.82503]
[1724347800680,6.09189,2614.8,2614.3,3.82503]
[1724347801426,3.82453,2614.7,2614.3,3.82503]
[1724347801827,2.2675,2614.8,2614.3,3.82503]
[1724347802035,6.09197,2614.8,2614.3,3.82503]
[1724347802533,3.82453,2614.7,2614.3,3.82503]
[1724347803125,6.17436,2614.4,2613.9,3.82559]
[1724347803819,2.3493,2614.4,2613.9,3.82559]
[1724347803999,2.3493,2614.4,2614.1,3.82538]
[1724347804185,6.09087,2614.6,2614.1,3.82538]
[1724347805237,6.09087,2614.6,2614.1,4.26512781]
[1724347805437,6.09087,2614.6,2614.1,4.26508781]
[1724347806012,3.82485,2614.5,2614.1,4.26508781]
[1724347806216,3.82485,2614.5,2613.8,1.645]
[1724347806217,3.82497,2614.4,2614.0,3.82554]
[1724347806414,2.4639,2614.3,2614.0,3.82554]
[1724347806817,2.4639,2614.3,2614.0,7.65108]
[1724347807149,2.4639,2614.3,2614.0,3.82554]
[1724347807513,6.09182,2614.5,2614.0,3.82554]
[1724347808869,6.09182,2614.5,2614.0,4.590558]
[1724347809054,2.267,2614.5,2614.1,3.82539]
[1724347809208,3.82467,2614.6,2614.1,6.21179]
[1724347809402,6.19317,2614.8,2614.1,6.21179]
[1724347809605,7.64831,2615.0,2614.5,3.82479]
[1724347809962,10.01705,2615.0,2614.5,6.22129]
[1724347810099,2.3687,2615.0,2614.6,3.90115422]
[1724347810302,6.59389,2615.2,2614.5,6.22129]
[1724347810303,6.59389,2615.2,2614.7,3.82444]
[1724347810802,10.41778,2615.2,2614.7,3.82444]
[1724347811008,3.82395,2615.1,2614.6,3.82464]
[1724347811240,3.82395,2615.1,2614.6,4.446754]
[1724347811903,6.59389,2615.2,2614.6,4.446754]
[1724347812101,3.82409,2615.0,2614.6,4.446754]
[1724347812354,3.82409,2615.0,2614.6,0.622114]
[1724347812915,3.82431,2614.9,2614.6,0.622114]
[1724347813115,3.82409,2615.0,2614.7,0.3018614]
[1724347813742,10.41775,2615.2,2614.7,0.3018614]
[1724347813943,3.82386,2615.2,2614.8,2.2988]
[1724347814117,3.82361,2615.4,2614.8,6.12317]
[1724347814326,7.64722,2615.4,2614.9,0.64250314]
[1724347814657,7.6472,2615.4,2614.9,0.64250314]
[1724347815030,3.82359,2615.4,2614.9,0.64250314]
[1724347815204,7.64724,2615.4,2614.9,0.64250314]
[1724347815405,7.64724,2615.4,2615.0,0.66031252]
[1724347815719,3.82368,2615.3,2614.8,6.12317]
[1724347816044,3.82381,2615.2,2614.8,2.2988]
[1724347817651,0.05091799,2615.1,2614.8,2.2988]
[1724347818005,0.05091799,2615.1,2614.8,6.12317]
[1724347818321,4.42315459,2615.4,2614.8,6.12317]
[1724347818322,3.82374,2615.3,2614.8,6.12317]
[1724347818528,3.82374,2615.3,2614.8,7.21034254]
[1724347818529,0.05152943,2615.0,2614.8,7.21034254]
[1724347818840,3.82374,2615.3,2614.8,7.21034254]
[1724347819055,0.05152943,2614.9,2614.8,7.21034254]
[1724347819251,3.82382,2615.2,2614.8,3.38597254]
[1724347819461,6.13804943,2615.2,2614.7,3.82449]
[1724347819653,6.08652,2615.2,2614.7,3.82449]
[1724347819858,0.05154154,2615.1,2614.7,3.82449]
[1724347820729,3.82419,2615.0,2614.6,2.375]
[1724347820927,3.87570127,2615.0,2614.6,3.69278317]
[1724347822360,3.87570127,2615.0,2614.6,7.51742317]
[1724347823722,0.05151127,2615.0,2614.6,7.51742317]
[1724347823922,3.82388,2615.2,2614.7,3.82452]
[1724347824127,0.05151127,2614.9,2614.7,4.95872332]
[1724347824322,0.05151127,2614.9,2614.7,3.82452]
[1724347824620,0.05151127,2614.8,2614.7,3.82444]
[1724347824820,3.82388,2615.2,2614.7,3.82444]
[1724347825260,0.05151127,2615.1,2614.7,3.82444]
[1724347826364,0.05151127,2615.1,2614.7,7.64889]
[1724347826560,0.05151127,2615.1,2614.7,8.78305732]
[1724347827163,0.05151127,2615.1,2614.7,4.95860732]
[1724347827640,0.05151127,2615.1,2614.7,8.78306732]
[1724347827837,0.05151127,2615.1,2614.7,4.95860732]
[1724347828052,6.291,2615.4,2614.9,3.82411]
[1724347828365,0.05145678,2615.3,2614.9,3.82411]
[1724347828770,3.87513678,2615.3,2614.9,3.82411]
[1724347829275,3.87513678,2615.3,2614.8,3.82436]
[1724347829568,3.87513678,2615.3,2614.7,4.95858732]
[1724347829569,3.87513678,2615.3,2614.9,3.82422]
[1724347831357,7.69886678,2615.3,2614.8,3.82437]
[1724347831562,3.8238,2615.2,2614.8,3.82437]
[1724347831879,3.82368,2615.3,2614.8,3.82437]
[1724347832075,0.05145678,2615.1,2614.8,3.82437]
[1724347832279,3.82368,2615.3,2614.8,5.23644405]
[1724347832465,0.05145678,2615.0,2614.8,5.23644405]
[1724347832677,3.82368,2615.3,2614.9,3.82423]
[1724347832853,3.82368,2615.3,2614.9,6.11293]
[1724347834164,7.64741,2615.3,2614.9,2.2887]
[1724347834488,3.82346,2615.5,2615.0,3.82408]
[1724347834987,3.82346,2615.5,2615.1,2.4647]
[1724347835284,7.86738,2615.9,2615.3,3.8235]
[1724347835285,3.82299,2615.8,2615.3,3.8235]
[1724347835486,3.82299,2615.8,2615.4,1.645]
[1724347835784,3.82299,2615.8,2615.3,2.4647]
[1724347835785,3.82299,2615.8,2615.3,6.28826]
[1724347835986,3.82299,2615.8,2615.3,7.463957]
[1724347837772,3.82272,2616.0,2615.5,3.82326]
[1724347838097,7.64544,2616.0,2615.6,0.0764544]
[1724347838247,7.64544,2616.0,2615.5,3.82326]
[1724347838449,3.82279,2615.9,2615.5,1.1312927]
[1724347838649,3.82292,2615.8,2615.4,2.4904]
[1724347838845,6.17602,2616.0,2615.4,6.31387]
[1724347839047,3.82306,2615.8,2615.3,1.175697]
[1724347839398,3.82313,2615.7,2615.3,1.175697]
[1724347840050,2.3499,2615.6,2615.0,1.158209]
[1724347840288,2.3499,2615.6,2614.9,9.3117]
[1724347840289,3.82358,2615.4,2614.9,9.3117]
[1724347841104,0.04983137,2615.3,2614.9,9.3117]
[1724347841252,0.04983137,2615.3,2615.0,3.82408]
[1724347841606,3.82322,2615.6,2615.1,3.82386]
[1724347841907,3.82314,2615.7,2615.2,4.588505]
[1724347842399,7.64633,2615.7,2615.2,4.588505]
[1724347842900,3.82321,2615.6,2615.2,4.588505]
[1724347843195,3.82321,2615.6,2615.2,0.764785]
[1724347843696,3.82336,2615.5,2615.2,0.764785]
[1724347843882,3.82365,2615.3,2614.8,3.82426]
[1724347844080,6.14651,2615.4,2614.9,3.82416]
[1724347844899,3.82403,2615.1,2614.5,6.22246]
[1724347845048,6.21293,2615.1,2614.5,10.0472]
[1724347845251,6.21293,2615.1,2614.5,10.04717]
[1724347846097,3.82447,2614.8,2614.3,6.29821]
[1724347846260,3.82431,2614.9,2614.3,6.29821]
[1724347846590,3.82431,2614.9,2614.4,4.454781]
[1724347846748,6.21293,2615.1,2614.5,3.82479]
[1724347847444,2.3889,2615.1,2614.5,3.82479]
[1724347848146,3.82393,2615.2,2614.7,6.11762]
[1724347848661,2.3661,2615.3,2614.7,7.111854]
[1724347848863,7.64715,2615.4,2614.9,3.82423]
[1724347849784,3.82365,2615.3,2614.7,10.936254]
[1724347850186,3.82365,2615.3,2614.7,7.111734]
[1724347850791,3.82365,2615.3,2614.8,3.82437]
[1724347851286,3.8238,2615.2,2614.8,3.82437]
[1724347851451,3.8238,2615.2,2614.8,0.7111704]
[1724347852396,3.8238,2615.2,2614.7,7.111814]
[1724347853593,3.82367,2615.3,2614.8,3.82434]
[1724347854553,7.64684,2615.5,2614.9,3.82412]
[1724347854788,3.82336,2615.5,2615.0,0.612472]
[1724347854989,3.82359,2615.4,2615.0,0.612472]
[1724347855665,3.87341047,2615.3,2615.0,0.612472]
[1724347856679,0.04974047,2615.3,2615.0,0.612472]
[1724347856885,3.82359,2615.4,2615.0,0.612472]
[1724347857203,0.04974047,2615.2,2615.0,0.612472]
[1724347857367,3.82359,2615.4,2615.1,0.4436592]
[1724347857574,0.04974047,2615.1,2615.0,0.612472]
[1724347857771,3.82359,2615.4,2615.0,0.612472]
[1724347857976,0.04974047,2615.1,2615.0,0.612472]
[1724347858178,3.82359,2615.4,2615.0,0.612472]
[1724347858366,0.04974047,2615.1,2615.0,0.612472]
[1724347858863,3.82359,2615.4,2615.0,0.612472]
[1724347859200,0.04974047,2615.3,2615.0,0.612472]
[1724347861786,0.04974047,2615.3,2615.1,0.4436592]
[1724347861970,0.04974047,2615.3,2615.2,2.296]
[1724347862164,7.64682,2615.5,2615.2,2.296]
[1724347862369,0.04974047,2615.3,2615.2,2.296]
[1724347862600,3.82338,2615.5,2615.2,2.296]
[1724347863095,0.04974047,2615.4,2615.2,2.296]
[1724347863298,0.04974047,2615.4,2615.2,8.64570112]
[1724347863627,3.82321,2615.6,2615.2,8.64570112]
[1724347863835,0.0499404,2615.3,2615.2,8.64581112]
[1724347864129,0.05009793,2615.3,2615.2,8.64581112]
[1724347864327,3.82307,2615.7,2615.2,8.64581112]
[1724347864529,3.82307,2615.7,2615.3,0.90894703]
[1724347865318,3.82307,2615.7,2615.3,4.73258703]
[1724347865639,3.82361,2615.4,2614.9,3.82412]
[1724347866706,3.82336,2615.5,2615.0,3.82399]
[1724347867233,3.82336,2615.5,2614.8,6.2397]
[1724347867234,3.82373,2615.3,2614.8,6.2397]
[1724347867382,3.82373,2615.3,2614.8,3.8243]
[1724347867582,3.82373,2615.3,2614.8,7.6486]
[1724347867821,3.82373,2615.3,2614.8,4.81489]
[1724347867980,3.82373,2615.3,2614.8,8.6392]
[1724347868180,3.82373,2615.3,2614.8,4.81489]
[1724347869222,6.09499,2615.2,2614.7,3.8244]
[1724347869535,6.09499,2615.2,2614.7,7.64885]
[1724347869738,2.2711,2615.2,2614.6,2.2573]
[1724347869941,2.2711,2615.2,2614.4,3.0]
[1724347869942,3.82445,2614.8,2614.4,2.4552]
[1724347870435,3.82419,2615.0,2614.4,6.28015]
[1724347870436,3.82424,2614.9,2614.4,6.28015]
[1724347870793,2.3837707,2614.8,2614.4,3.82495]
[1724347870993,0.0499707,2614.8,2614.4,3.82495]
[1724347875325,0.0499707,2614.8,2614.4,4.82021]
[1724347877624,0.0499707,2614.8,2614.4,3.82495]
[1724347878029,3.82454,2614.7,2614.2,2.3024]
[1724347878244,3.82527,2614.2,2613.7,2.3199]
[1724347878443,3.82541,2614.1,2613.7,2.3199]
[1724347878626,3.82541,2614.1,2613.5,2.91848938]
[1724347878811,3.82588,2613.8,2613.2,3.82663]
[1724347879012,3.82588,2613.8,2613.1,2.3199]
[1724347879013,2.337,2613.7,2613.1,2.3199]
[1724347879210,2.337,2613.7,2613.0,3.82691]
[1724347879211,3.82645,2613.4,2612.8,6.14711]
[1724347879518,3.82615,2613.6,2612.8,6.14711]
[1724347879519,3.82638,2613.5,2612.9,3.82714]
[1724347879778,0.04926775,2613.3,2612.8,2.3199]
[1724347880075,3.82643,2613.4,2612.8,6.14719]
[1724347880281,0.04926775,2613.2,2612.8,6.14719]
[1724347880566,0.04926775,2613.1,2612.8,7.144643]
[1724347880876,3.82643,2613.4,2612.8,2.3199]
[1724347881366,0.04926775,2613.3,2612.8,2.3199]